bitfinex-derivatives/quotes_BTCF0:USTF0_20251009
["timestamp","ask_amount","ask_price","bid_price","bid_amount"]
[1760049210616,1.72576349,121570.0,121560.0,0.07199004]
[1760049211615,0.98388349,121570.0,121560.0,0.07199004]
[1760049211910,1.72576349,121570.0,121560.0,0.07199004]
[1760049213801,0.98388349,121570.0,121560.0,0.07199004]
[1760049214007,0.98388349,121570.0,121560.0,0.49300004]
[1760049214008,0.38795211,121570.0,121560.0,0.49300004]
[1760049214212,0.64530015,121570.0,121560.0,0.49300004]
[1760049214406,0.64530015,121570.0,121560.0,0.57522274]
[1760049215408,0.58090328,121570.0,121560.0,0.57522274]
[1760049216409,0.77385445,121570.0,121560.0,0.57522274]
[1760049217607,0.58090328,121570.0,121560.0,0.57522274]
[1760049222319,0.58090328,121570.0,121560.0,0.17522274]
[1760049241031,0.38795211,121570.0,121560.0,0.17522274]
[1760049241228,0.58090328,121570.0,121560.0,0.17522274]
[1760049242231,0.58090328,121570.0,121560.0,0.17422274]
[1760049242431,0.58090328,121570.0,121560.0,0.17522274]
[1760049245025,0.58090328,121570.0,121560.0,0.91694274]
[1760049245635,0.77385445,121570.0,121560.0,0.91694274]
[1760049246136,0.58090328,121570.0,121560.0,0.91694274]
[1760049246540,0.58090328,121570.0,121560.0,0.17522274]
[1760049246836,0.58090328,121570.0,121560.0,0.91690274]
[1760049248542,0.38795211,121570.0,121560.0,0.91690274]
[1760049248742,0.58090328,121570.0,121560.0,0.91690274]
[1760049249635,0.38795211,121570.0,121560.0,0.91690274]
[1760049249838,0.58090328,121570.0,121560.0,1.31690274]
[1760049250240,0.58090328,121570.0,121560.0,1.50985391]
[1760049250842,0.58090328,121570.0,121560.0,1.31690274]
[1760049251343,0.58090328,121570.0,121560.0,1.46464339]
[1760049251545,0.58090328,121570.0,121560.0,1.65759456]
[1760049254448,0.58090328,121570.0,121560.0,1.46464339]
[1760049256446,0.58090328,121570.0,121560.0,1.65759456]
[1760049257443,0.38795211,121570.0,121560.0,1.65759456]
[1760049257644,0.58090328,121570.0,121560.0,1.65759456]
[1760049257949,0.58090328,121570.0,121560.0,1.50985391]
[1760049259550,0.58090328,121570.0,121560.0,1.70196698]
[1760049261145,0.58090328,121570.0,121560.0,1.84968082]
[1760049261942,0.58090328,121570.0,121560.0,1.65756775]
[1760049263347,0.27006621,121570.0,121560.0,1.65756775]
[1760049263650,0.27006621,121570.0,121560.0,1.85051892]
[1760049263851,0.27006621,121570.0,121560.0,1.10883892]
[1760049264052,0.27006621,121570.0,121560.0,1.85051892]
[1760049264444,0.27006621,121570.0,121560.0,1.70280508]
[1760049264848,0.1312331,121570.0,121560.0,1.70280508]
[1760049265050,0.29006621,121570.0,121560.0,1.70280508]
[1760049266654,6.621e-05,121570.0,121560.0,1.70280508]
[1760049266954,0.088078,121590.0,121580.0,0.1147192]
[1760049267152,0.398078,121590.0,121580.0,0.30767037]
[1760049267353,0.33121,121590.0,121580.0,1.04935037]
[1760049267749,0.41346629,121590.0,121580.0,1.44935037]
[1760049267952,0.39225629,121590.0,121580.0,1.44935037]
[1760049268148,0.39425629,121590.0,121580.0,1.44935037]
[1760049268352,0.39425629,121590.0,121580.0,1.59651887]
[1760049268551,0.31205389,121590.0,121580.0,1.78947004]
[1760049268757,0.00205389,121590.0,121580.0,1.78947004]
[1760049268952,0.03474,121620.0,121610.0,0.02272]
[1760049269157,0.3559753,121620.0,121610.0,0.7644]
[1760049269357,0.82405974,121620.0,121610.0,0.7644]
[1760049269655,0.82405974,121620.0,121610.0,0.77309865]
[1760049270757,0.54987327,121620.0,121610.0,0.11360755]
[1760049270946,0.54987327,121620.0,121610.0,0.85548755]
[1760049271551,0.54987327,121620.0,121610.0,0.31531872]
[1760049271751,0.54987327,121620.0,121610.0,1.17936642]
[1760049271952,0.26121,121620.0,121610.0,1.17936642]
[1760049272161,0.24,121620.0,121610.0,1.77231759]
[1760049272456,0.31485307,121650.0,121640.0,0.1052386]
[1760049272657,0.69608837,121650.0,121640.0,0.6501186]
[1760049272960,0.5031372,121650.0,121640.0,0.84306977]
[1760049273162,0.69608837,121650.0,121640.0,0.6501186]
[1760049273357,0.69608837,121650.0,121640.0,0.1052386]
[1760049273658,0.61485307,121650.0,121640.0,0.29818977]
[1760049273961,0.61485307,121650.0,121640.0,0.95518977]
[1760049274262,0.61485307,121650.0,121640.0,1.04046977]
[1760049274858,0.61485307,121650.0,121640.0,0.29818977]
[1760049275157,0.61685307,121650.0,121640.0,0.8474786]
[1760049275857,0.61685307,121650.0,121640.0,1.04042977]
[1760049277461,0.4239019,121650.0,121640.0,0.8474786]
[1760049278963,0.4239019,121650.0,121640.0,0.76515]
[1760049279560,0.68077823,121650.0,121640.0,0.02307]
[1760049280358,0.1033921,121620.0,121610.0,0.18972183]
[1760049280560,0.4233921,121620.0,121610.0,0.25892183]
[1760049280859,0.4233921,121620.0,121610.0,0.18972183]
[1760049281062,0.4233921,121620.0,121610.0,0.93172183]
[1760049281263,0.4233921,121620.0,121610.0,1.18859816]
[1760049281653,0.4233921,121620.0,121610.0,1.18959816]
[1760049285856,0.32,121620.0,121610.0,1.18959816]
[1760049286862,0.32,121620.0,121610.0,0.84759816]
[1760049287063,0.32,121620.0,121610.0,1.58951816]
[1760049293373,0.32,121620.0,121610.0,1.58939816]
[1760049293566,0.32,121620.0,121610.0,1.59488183]
[1760049293766,0.32,121620.0,121610.0,1.58935816]
[1760049294569,0.34139,121620.0,121610.0,0.84759816]
[1760049294773,0.34139,121620.0,121610.0,1.58935816]
[1760049295579,0.34139,121620.0,121610.0,0.84759816]
[1760049295777,0.32,121620.0,121610.0,1.58935816]
[1760049296573,0.32,121620.0,121610.0,1.58931816]
[1760049296772,0.32,121620.0,121610.0,0.84759816]
[1760049296970,0.32,121620.0,121610.0,1.58931816]
[1760049298974,0.32,121620.0,121610.0,1.73648666]
[1760049303781,0.32,121620.0,121610.0,0.99476666]
[1760049303981,0.32,121620.0,121610.0,1.99876666]
[1760049305774,0.32,121620.0,121610.0,1.25716666]
[1760049305976,1.17623373,121620.0,121610.0,0.50934403]
[1760049306379,1.17623373,121620.0,121610.0,0.96611403]
[1760049306577,1.17623373,121620.0,121610.0,0.98767403]
[1760049307179,1.17623373,121620.0,121610.0,0.84050553]
[1760049308181,1.17623373,121620.0,121610.0,0.83950553]
[1760049308382,1.17623373,121620.0,121610.0,0.84050553]
[1760049309083,1.17623373,121620.0,121610.0,0.83950553]
[1760049309675,0.9193574,121620.0,121610.0,0.83950553]
[1760049309876,0.5193574,121620.0,121610.0,0.92169443]
[1760049310075,0.5193574,121620.0,121610.0,1.18263076]
[1760049310275,0.5193574,121620.0,121610.0,0.92575443]
[1760049311481,0.5193574,121620.0,121610.0,0.92675443]
[1760049312085,0.5193574,121620.0,121610.0,0.92269443]
[1760049312286,0.5193574,121620.0,121610.0,0.92169443]
[1760049312485,0.5193574,121620.0,121610.0,0.92269443]
[1760049312884,0.5193574,121620.0,121610.0,1.06986293]
[1760049315986,0.77623373,121620.0,121610.0,0.92269443]
[1760049316489,0.5193574,121620.0,121610.0,0.92269443]
[1760049316684,0.5193574,121620.0,121610.0,0.84054553]
[1760049317395,0.77623373,121620.0,121610.0,0.84050553]
[1760049317586,0.77623373,121620.0,121610.0,0.84054553]
[1760049318588,1.17623373,121620.0,121610.0,0.81898553]
[1760049319596,1.17623373,121620.0,121610.0,0.84054553]
[1760049319991,1.17623373,121620.0,121610.0,0.83954553]
[1760049320400,1.17623373,121620.0,121610.0,1.03102985]
[1760049321593,1.17623373,121620.0,121610.0,0.26718985]
[1760049321789,1.17623373,121620.0,121610.0,0.93718985]
[1760049322902,1.17623373,121620.0,121610.0,0.26718985]
[1760049323099,1.17623373,121620.0,121610.0,1.00962985]
[1760049325301,1.17623373,121620.0,121610.0,0.81814553]
[1760049326098,1.09499843,121620.0,121610.0,0.81814553]
[1760049326303,1.17623373,121620.0,121610.0,0.81814553]
[1760049328503,0.9193574,121620.0,121610.0,0.83970553]
[1760049328704,1.17623373,121620.0,121610.0,0.83970553]
[1760049329402,1.17623373,121620.0,121610.0,0.07570553]
[1760049329604,1.17623373,121620.0,121610.0,0.71688]
[1760049330305,1.17623373,121620.0,121610.0,0.8727185]
[1760049331104,1.17623373,121620.0,121610.0,0.79263663]
[1760049331507,1.17623373,121620.0,121610.0,0.98424849]
[1760049332007,1.17623373,121620.0,121610.0,1.00980849]
[1760049332707,1.17623373,121620.0,121610.0,0.81819663]
[1760049334006,1.09499843,121620.0,121610.0,0.81819663]
[1760049336204,1.09499843,121620.0,121610.0,0.07575663]
[1760049336504,0.1178389,121610.0,121600.0,0.24059418]
[1760049336708,0.66471523,121610.0,121600.0,0.98295418]
[1760049336907,0.66471523,121610.0,121600.0,0.24059418]
[1760049337108,0.66471523,121610.0,121600.0,0.98299418]
[1760049337310,0.66471523,121610.0,121600.0,0.24059418]
[1760049337705,0.66471523,121610.0,121600.0,0.99165047]
[1760049339109,0.74595053,121610.0,121600.0,0.99265047]
[1760049339410,0.87478852,121610.0,121600.0,0.99265047]
[1760049340311,0.87478852,121610.0,121600.0,1.05736171]
[1760049340612,0.87478852,121610.0,121600.0,1.24918782]
[1760049341612,0.87478852,121610.0,121600.0,1.01352765]
[1760049341912,0.68193136,121610.0,121600.0,1.01352765]
[1760049342113,0.68193136,121610.0,121600.0,0.29440765]
[1760049343015,0.68193136,121610.0,121600.0,0.10258154]
[1760049343212,0.4890742,121610.0,121600.0,0.10258154]
[1760049343514,0.68193136,121610.0,121600.0,0.10258154]
[1760049343813,0.68193136,121610.0,121600.0,0.84486154]
[1760049346018,0.68193136,121610.0,121600.0,0.99216204]
[1760049346716,0.68193136,121610.0,121600.0,0.84486154]
[1760049347214,0.68193136,121610.0,121600.0,0.99212475]
[1760049348212,0.68193136,121610.0,121600.0,0.24984475]
[1760049348419,0.68193136,121610.0,121600.0,0.52489751]
[1760049348718,0.68193136,121610.0,121600.0,1.26709751]
[1760049348918,0.68193136,121610.0,121600.0,1.1198343]
[1760049349612,0.68193136,121610.0,121600.0,0.92697714]
[1760049349815,0.4078389,121610.0,121600.0,0.97049146]
[1760049350011,0.3945189,121610.0,121600.0,1.72272146]
[1760049350216,0.3945189,121610.0,121600.0,1.5298643]
[1760049350620,0.3945189,121610.0,121600.0,1.67708982]
[1760049352319,0.3945189,121610.0,121600.0,1.5298643]
[1760049352520,0.3945189,121610.0,121600.0,1.67706293]
[1760049352917,0.60090606,121610.0,121600.0,1.66727293]
[1760049353617,0.32586,121610.0,121600.0,1.67706293]
[1760049353823,0.3945189,121610.0,121600.0,1.86992009]
[1760049354116,0.3945189,121610.0,121600.0,1.5298643]
[1760049354321,0.31233,121610.0,121600.0,1.5298643]
[1760049355724,0.31233,121610.0,121600.0,1.67706293]
[1760049356325,0.50518716,121610.0,121600.0,1.67706293]
[1760049356923,0.58737606,121610.0,121600.0,1.67714293]
[1760049357520,0.58737606,121610.0,121600.0,1.67614293]
[1760049357726,0.58737606,121610.0,121600.0,1.67714293]
[1760049358021,0.60090606,121610.0,121600.0,1.66735293]
[1760049358412,0.60090606,121610.0,121600.0,1.66731293]
[1760049358827,0.4080489,121610.0,121600.0,1.66731293]
[1760049359018,0.60090606,121610.0,121600.0,1.5201143]
[1760049360118,0.68214136,121610.0,121600.0,1.5201143]
[1760049360426,0.68214136,121610.0,121600.0,0.7776343]
[1760049360725,0.68214136,121610.0,121600.0,1.66727293]
[1760049363724,0.68214136,121610.0,121600.0,1.7115685]
[1760049365820,0.68214136,121610.0,121600.0,0.9691285]
[1760049366021,0.68214136,121610.0,121600.0,1.7114485]
[1760049366420,0.68214136,121610.0,121600.0,0.37627134]
[1760049366925,0.68214136,121610.0,121600.0,1.11855134]
[1760049368530,0.68214136,121610.0,121600.0,0.92705714]
[1760049368727,0.68214136,121610.0,121600.0,0.92701714]
[1760049369128,0.68214136,121610.0,121600.0,1.1198743]
[1760049371024,0.68214136,121610.0,121600.0,0.92701714]
[1760049372830,0.68214136,121610.0,121600.0,1.11867594]
[1760049374132,0.68214136,121610.0,121600.0,0.92701714]
[1760049377338,0.60090606,121610.0,121600.0,0.92701714]
[1760049377637,0.68214136,121610.0,121600.0,0.92701714]
[1760049377835,0.68214136,121610.0,121600.0,1.1198743]
[1760049383147,0.68214136,121610.0,121600.0,0.92701714]
[1760049383347,0.68214136,121610.0,121600.0,1.1198743]
[1760049384453,0.60090606,121610.0,121600.0,1.1198743]
[1760049384639,0.68214136,121610.0,121600.0,1.1198743]
[1760049386450,0.68214136,121610.0,121600.0,0.92701714]
[1760049386751,0.68214136,121610.0,121600.0,1.1198743]
[1760049388247,0.4070953,121610.0,121600.0,1.31241146]
[1760049388448,0.4070953,121610.0,121600.0,1.1195543]
[1760049389043,0.3935653,121610.0,121600.0,1.1195543]
[1760049389244,0.3935653,121610.0,121600.0,1.1293443]
[1760049389641,0.29,121610.0,121600.0,1.32220146]
[1760049393052,0.29,121610.0,121600.0,1.58460146]
[1760049393848,0.29,121610.0,121600.0,1.3819543]
[1760049394053,0.59892606,121610.0,121600.0,1.3819543]
[1760049394355,0.4060689,121610.0,121600.0,0.44717714]
[1760049394553,0.4060689,121610.0,121600.0,1.3819543]
[1760049394554,0.59892606,121610.0,121600.0,1.3819543]
[1760049395451,0.59892606,121610.0,121600.0,0.44717714]
[1760049395753,0.59892606,121610.0,121600.0,1.3819543]
[1760049399363,0.4060689,121610.0,121600.0,1.3819543]
[1760049399561,0.59892606,121610.0,121600.0,1.3819543]
[1760049400959,0.59892606,121610.0,121600.0,0.6400343]
[1760049401159,0.59892606,121610.0,121600.0,1.3818743]
[1760049401460,0.4060689,121610.0,121600.0,1.18901714]
[1760049402159,0.32388,121610.0,121600.0,1.18901714]
[1760049403957,0.32388,121610.0,121600.0,1.42467731]
[1760049404361,0.32388,121610.0,121600.0,0.68283731]
[1760049404362,0.4060689,121610.0,121600.0,0.68283731]
[1760049404562,0.66311303,121610.0,121600.0,1.42459731]
[1760049405061,0.4060689,121610.0,121600.0,1.42459731]
[1760049405361,0.4060689,121610.0,121600.0,0.68283731]
[1760049405561,0.4060689,121610.0,121600.0,1.42459731]
[1760049405764,0.4060689,121610.0,121600.0,0.68283731]
[1760049405957,0.4060689,121610.0,121600.0,1.42459731]
[1760049406762,0.4060689,121610.0,121600.0,0.68283731]
[1760049406962,0.66311303,121610.0,121600.0,1.42459731]
[1760049408265,0.66311303,121610.0,121600.0,0.68283731]
[1760049408467,0.66311303,121610.0,121600.0,1.42455731]
[1760049411365,0.74434833,121610.0,121600.0,0.60064171]
[1760049411566,0.74434833,121610.0,121600.0,1.34232171]
[1760049412066,0.74434833,121610.0,121600.0,1.10666154]
[1760049412668,0.74434833,121610.0,121600.0,1.18885724]
[1760049415267,0.66311303,121610.0,121600.0,1.18885724]
[1760049415463,0.74434833,121610.0,121600.0,1.18885724]
[1760049416663,0.74434833,121610.0,121600.0,0.92645724]
[1760049420171,0.74434833,121610.0,121600.0,2.42645724]
[1760049425678,0.74434833,121610.0,121600.0,0.10258154]
[1760049425879,1.14434833,121610.0,121600.0,0.82102154]
[1760049426970,1.14434833,121610.0,121600.0,0.84280154]
[1760049428179,1.14434833,121610.0,121600.0,1.03445002]
[1760049430582,1.14434833,121610.0,121600.0,0.84280154]
[1760049431578,1.14434833,121610.0,121600.0,1.03445038]
[1760049431785,0.8873042,121610.0,121600.0,1.03445038]
[1760049432082,1.14434833,121610.0,121600.0,1.03445038]
[1760049432884,1.14434833,121610.0,121600.0,0.84280154]
[1760049436087,1.14434833,121610.0,121600.0,0.92499724]
[1760049440893,0.3924553,121610.0,121600.0,1.19187137]
[1760049441094,0.3712353,121610.0,121600.0,1.19187137]
[1760049442293,0.3712353,121610.0,121600.0,1.42753154]
[1760049444298,0.3712353,121610.0,121600.0,1.19187137]
[1760049444498,0.4534242,121610.0,121600.0,1.19187137]
[1760049445701,0.29,121610.0,121600.0,1.59187137]
[1760049452109,0.29,121610.0,121600.0,0.99756653]
[1760049452307,0.29,121610.0,121600.0,1.73980653]
[1760049452508,0.29,121610.0,121600.0,1.93144069]
[1760049452708,0.26125375,121610.0,121600.0,1.18920069]
[1760049453003,0.26125375,121610.0,121600.0,1.78402553]
[1760049454114,0.21599392,121610.0,121600.0,1.78402553]
[1760049455014,0.21599392,121610.0,121600.0,1.59239137]
[1760049457312,0.19999392,121610.0,121600.0,1.59239137]
[1760049457509,0.00381972,121610.0,121600.0,1.8493155]
[1760049457713,0.117224,121640.0,121630.0,0.0821754]
[1760049457919,0.397224,121640.0,121630.0,0.8475954]
[1760049458112,0.4784593,121640.0,121630.0,0.99489241]
[1760049460216,0.4814593,121640.0,121630.0,0.99489241]
[1760049461122,0.4784593,121640.0,121630.0,0.99489241]
[1760049461317,0.4784593,121640.0,121630.0,0.99589241]
[1760049462122,0.4794593,121640.0,121630.0,0.99589241]
[1760049463424,0.67215494,121640.0,121630.0,1.18858805]
[1760049463623,0.67115494,121640.0,121630.0,1.18958805]
[1760049465322,0.67115494,121640.0,121630.0,1.04229104]
[1760049466325,0.67115494,121640.0,121630.0,1.18942593]
[1760049468625,0.67115494,121640.0,121630.0,1.04229104]
[1760049470026,0.67115494,121640.0,121630.0,1.18945983]
[1760049471125,0.4784593,121640.0,121630.0,1.18945983]
[1760049471623,0.4784593,121640.0,121630.0,1.04229104]
[1760049472024,0.4784593,121640.0,121630.0,0.44726812]
[1760049472224,0.4784593,121640.0,121630.0,1.18922812]
[1760049472932,0.4784593,121640.0,121630.0,0.36509272]
[1760049473130,0.4784593,121640.0,121630.0,1.10705272]
[1760049473629,0.4784593,121640.0,121630.0,0.95987564]
[1760049474026,0.67115494,121640.0,121630.0,0.95987564]
[1760049475635,0.58991964,121640.0,121630.0,0.95987564]
[1760049475933,0.67115494,121640.0,121630.0,0.95987564]
[1760049476231,0.3962853,121640.0,121630.0,1.04201104]
[1760049476430,0.3962853,121640.0,121630.0,1.04197104]
[1760049476925,0.4784539,121640.0,121630.0,1.23351054]
[1760049477527,0.3962853,121640.0,121630.0,1.23351054]
[1760049477829,0.28,121640.0,121630.0,1.64239054]
[1760049479134,0.28,121640.0,121630.0,1.83508618]
[1760049479334,0.28,121640.0,121630.0,1.45085104]
[1760049480631,0.28,121640.0,121630.0,1.68651121]
[1760049481334,0.27947374,121640.0,121630.0,1.68651121]
[1760049482834,0.27947374,121640.0,121630.0,1.45085104]
[1760049483438,0.27947374,121640.0,121630.0,1.64354668]
[1760049483634,0.005,121650.0,121640.0,0.1140586]
[1760049483839,0.055,121650.0,121640.0,1.09214552]
[1760049484133,0.20649115,121650.0,121640.0,0.89944988]
[1760049484334,0.20649115,121650.0,121640.0,3.69460988]
[1760049484535,0.04073,121670.0,121650.0,0.0862204]
[1760049484736,0.53342564,121670.0,121660.0,0.76266835]
[1760049484934,0.53342564,121670.0,121660.0,0.88997404]
[1760049485130,0.34073,121670.0,121660.0,1.08266968]
[1760049486337,0.305,121670.0,121660.0,1.27532532]
[1760049486534,0.305,121670.0,121660.0,1.67532532]
[1760049486935,0.307,121670.0,121660.0,1.28993404]
[1760049487238,0.318,121670.0,121660.0,1.86641888]
[1760049487536,0.318,121670.0,121660.0,2.01326663]
[1760049487737,0.316,121670.0,121660.0,2.01426663]
[1760049487937,0.316,121670.0,121660.0,1.27122663]
[1760049488145,0.316,121670.0,121660.0,3.91929888]
[1760049488338,0.316,121670.0,121660.0,3.87492061]
[1760049488539,0.316,121670.0,121660.0,1.08000061]
[1760049488838,0.316,121670.0,121660.0,3.87480061]
[1760049489033,0.315,121670.0,121660.0,3.87476061]
[1760049489239,0.315,121670.0,121660.0,3.87576061]
[1760049492640,0.315,121670.0,121660.0,3.72900532]
[1760049493343,0.315,121670.0,121660.0,3.87554302]
[1760049493844,0.315,121670.0,121660.0,1.08078302]
[1760049494045,0.315,121670.0,121660.0,1.82354302]
[1760049494640,0.315,121670.0,121660.0,2.08594302]
[1760049495035,0.315,121670.0,121660.0,1.19664532]
[1760049495240,0.315,121670.0,121660.0,1.93936532]
[1760049495843,0.315,121670.0,121660.0,1.82350302]
[1760049496645,0.315,121670.0,121660.0,1.67696532]
[1760049497544,0.315,121670.0,121660.0,1.82350302]
[1760049498049,0.54342564,121670.0,121660.0,1.23076738]
[1760049498252,0.35073,121670.0,121660.0,1.23076738]
[1760049498443,0.35073,121670.0,121660.0,1.42346302]
[1760049500150,0.35073,121670.0,121660.0,1.42330302]
[1760049500349,0.35073,121670.0,121660.0,0.68078302]
[1760049500550,0.35073,121670.0,121660.0,1.42330302]
[1760049501250,0.35073,121670.0,121660.0,1.03791174]
[1760049501654,0.35073,121670.0,121660.0,1.42330302]
[1760049502953,0.35073,121670.0,121660.0,1.27676532]
[1760049503157,0.35073,121670.0,121660.0,1.27672532]
[1760049503352,0.32789,121670.0,121660.0,1.27672532]
[1760049503654,0.315,121670.0,121660.0,1.27672532]
[1760049503857,0.315,121670.0,121660.0,1.42326302]
[1760049504256,0.315,121670.0,121660.0,0.68078302]
[1760049504450,0.315,121670.0,121660.0,1.42322302]
[1760049504650,0.005,121670.0,121660.0,1.27668532]
[1760049504952,0.23424564,121690.0,121670.0,0.0821484]
[1760049505152,0.0812353,121680.0,121670.0,0.0821484]
[1760049505355,0.3712353,121680.0,121670.0,0.8245484]
[1760049506356,0.3712353,121680.0,121670.0,1.16391961]
[1760049507457,0.3841253,121680.0,121670.0,1.16391961]
[1760049508559,0.3841253,121680.0,121670.0,1.1724055]
[1760049509162,0.4069653,121680.0,121670.0,0.4300055]
[1760049509554,0.4069653,121680.0,121670.0,1.1722855]
[1760049510253,0.59966094,121680.0,121670.0,1.1722855]
[1760049510754,0.4069653,121680.0,121670.0,1.1722855]
[1760049510954,0.59966094,121680.0,121670.0,1.1722855]
[1760049512761,0.59966094,121680.0,121670.0,1.02560993]
[1760049513863,0.4069653,121680.0,121670.0,1.02560993]
[1760049514360,0.59966094,121680.0,121670.0,1.02560993]
[1760049515863,0.4069653,121680.0,121670.0,0.83291429]
[1760049516064,0.59966094,121680.0,121670.0,1.21674349]
[1760049516763,0.59966094,121680.0,121670.0,1.36409214]
[1760049517354,0.59966094,121680.0,121670.0,1.17295858]
[1760049517560,0.4069653,121680.0,121670.0,1.17295858]
[1760049518565,0.4069653,121680.0,121670.0,1.21674349]
[1760049518859,0.3841253,121680.0,121670.0,1.21674349]
[1760049521464,0.4052853,121680.0,121670.0,0.47446349]
[1760049521658,0.4052853,121680.0,121670.0,1.21650349]
[1760049521968,0.4052853,121680.0,121670.0,1.21646349]
[1760049522266,0.59798094,121680.0,121670.0,1.21646349]
[1760049523068,0.59798094,121680.0,121670.0,1.36385756]
[1760049523568,0.59798094,121680.0,121670.0,1.172724]
[1760049523963,0.59798094,121680.0,121670.0,1.02532993]
[1760049524470,0.4052853,121680.0,121670.0,1.02532993]
[1760049524767,0.4052853,121680.0,121670.0,1.21646349]
[1760049524964,0.59798094,121680.0,121670.0,1.02372785]
[1760049525169,0.59798094,121680.0,121670.0,1.21642349]
[1760049525469,0.4052853,121680.0,121670.0,1.02372785]
[1760049528371,0.4052853,121680.0,121670.0,0.83259429]
[1760049528970,0.4052853,121680.0,121670.0,1.02419878]
[1760049530270,0.4052853,121680.0,121670.0,0.83259429]
[1760049530863,0.4052853,121680.0,121670.0,1.02423199]
[1760049531767,0.4052853,121680.0,121670.0,1.28097679]
[1760049532072,0.4052853,121680.0,121670.0,1.08933909]
[1760049533468,0.4052853,121680.0,121670.0,0.34737909]
[1760049533772,0.4052853,121680.0,121670.0,0.83247429]
[1760049535074,0.4052853,121680.0,121670.0,1.06813446]
[1760049537176,0.4052853,121680.0,121670.0,2.56813446]
[1760049539477,0.4052853,121680.0,121670.0,2.56913446]
[1760049540179,0.4052853,121680.0,121670.0,2.57013446]
[1760049540679,0.4052853,121680.0,121670.0,2.56913446]
[1760049540872,0.4052853,121680.0,121670.0,2.56997446]
[1760049541175,0.4052853,121680.0,121670.0,2.82671926]
[1760049542376,0.3841253,121680.0,121670.0,2.82667926]
[1760049543178,0.3841253,121680.0,121670.0,2.33427429]
[1760049543381,0.3841253,121680.0,121670.0,1.59163429]
[1760049543581,0.3841253,121680.0,121670.0,2.25212589]
[1760049543880,0.3841253,121680.0,121670.0,1.59263429]
[1760049544178,0.3841253,121680.0,121670.0,2.33427429]
[1760049545376,0.3841253,121680.0,121670.0,2.56993446]
[1760049546882,0.3841253,121680.0,121670.0,2.56893446]
[1760049547082,0.3841253,121680.0,121670.0,2.56993446]
[1760049547282,0.3841253,121680.0,121670.0,2.56893446]
[1760049547484,0.3841253,121680.0,121670.0,2.56993446]
[1760049548082,0.3841253,121680.0,121670.0,2.82667926]
[1760049548783,0.30289,121680.0,121670.0,2.82667926]
[1760049549083,0.3841253,121680.0,121670.0,2.82667926]
[1760049549282,0.3841253,121680.0,121670.0,2.82659926]
[1760049549979,0.3841253,121680.0,121670.0,2.08503926]
[1760049550180,0.3841253,121680.0,121670.0,2.82655926]
[1760049550483,0.3841253,121680.0,121670.0,3.08895926]
[1760049555892,0.30289,121680.0,121670.0,3.08895926]
[1760049556197,0.29992564,121680.0,121670.0,3.08895926]
[1760049557292,0.29992564,121680.0,121670.0,3.28068567]
[1760049557495,0.29992564,121680.0,121670.0,3.0450255]
[1760049557894,0.29992564,121680.0,121670.0,2.7826255]
[1760049559095,0.28703564,121680.0,121670.0,2.7826255]
[1760049559303,0.005,121690.0,121680.0,0.0821416]
[1760049559491,0.24447214,121690.0,121680.0,0.83129137]
[1760049559698,0.01789,121710.0,121690.0,0.082133]
[1760049560001,0.32789,121710.0,121700.0,0.93722886]
[1760049560202,0.34985,121710.0,121700.0,0.93722886]
[1760049560500,0.34985,121710.0,121700.0,1.33722886]
[1760049560701,0.32789,121710.0,121700.0,1.525796]
[1760049561090,0.32789,121710.0,121700.0,1.725796]
[1760049561297,0.285,121710.0,121700.0,3.92112004]
[1760049561802,0.285,121710.0,121700.0,1.12744004]
[1760049562002,0.285,121710.0,121700.0,3.92108004]
[1760049562199,0.27817866,121710.0,121700.0,3.79750592]
[1760049562394,0.03985,121730.0,121710.0,0.0821214]
[1760049562600,0.0812353,121720.0,121710.0,0.0821214]
[1760049562899,0.3612353,121720.0,121710.0,0.8244814]
[1760049563099,0.28,121720.0,121710.0,0.8244814]
[1760049563300,0.03485,121740.0,121720.0,0.0821146]
[1760049563502,0.1160853,121740.0,121730.0,0.8245479]
[1760049563802,0.4260853,121740.0,121730.0,1.0812927]
[1760049564199,0.4041253,121740.0,121730.0,1.0815327]
[1760049565002,0.4051253,121740.0,121730.0,1.0815327]
[1760049565404,0.4270853,121740.0,121730.0,3.1325327]
[1760049565605,0.4270853,121740.0,121730.0,0.3388527]
[1760049565805,0.4270853,121740.0,121730.0,1.0814527]
[1760049566005,0.4270853,121740.0,121730.0,0.3388527]
[1760049566206,0.4270853,121740.0,121730.0,1.0814527]
[1760049567007,0.4260853,121740.0,121730.0,1.0814527]
[1760049567406,0.4260853,121740.0,121730.0,0.3388527]
[1760049567605,0.4260853,121740.0,121730.0,1.0814127]
[1760049568106,0.4260853,121740.0,121730.0,0.3388527]
[1760049568304,0.4260853,121740.0,121730.0,1.228064]
[1760049568606,0.4260853,121740.0,121730.0,0.485584]
[1760049568808,0.4260853,121740.0,121730.0,1.228064]
[1760049570114,0.4260853,121740.0,121730.0,0.485584]
[1760049570306,0.4270853,121740.0,121730.0,1.228024]
[1760049570610,0.4270853,121740.0,121730.0,0.485584]
[1760049570810,0.4270853,121740.0,121730.0,1.227984]
[1760049571605,0.4270853,121740.0,121730.0,1.0812527]
[1760049573012,0.4270853,121740.0,121730.0,0.3388527]
[1760049573205,0.01269,121730.0,121720.0,2.3894927]
[1760049573404,0.3839253,121730.0,121720.0,3.3218527]
[1760049573601,0.30269,121730.0,121720.0,3.3218527]
[1760049573903,0.30269,121730.0,121720.0,2.5894927]
[1760049574107,0.3839253,121730.0,121720.0,3.3317727]
[1760049574708,0.3839253,121730.0,121720.0,2.5894927]
[1760049574912,0.3839253,121730.0,121720.0,3.3318127]
[1760049575816,0.4071053,121730.0,121720.0,1.2811327]
[1760049577113,0.4071053,121730.0,121720.0,0.5388527]
[1760049577314,0.4071053,121730.0,121720.0,1.0243479]
[1760049577516,0.4071053,121730.0,121720.0,1.2810927]
[1760049578215,0.4071053,121730.0,121720.0,0.5388527]
[1760049578513,0.4071053,121730.0,121720.0,1.2810527]
[1760049581219,0.3839253,121730.0,121720.0,1.2810527]
[1760049585523,0.3839253,121730.0,121720.0,1.40904832]
[1760049586622,0.30269,121730.0,121720.0,1.40904832]
[1760049586821,0.3839253,121730.0,121720.0,1.40904832]
[1760049587921,0.30269,121730.0,121720.0,1.40904832]
[1760049588124,0.3839253,121730.0,121720.0,1.40904832]
[1760049589226,0.30269,121730.0,121720.0,1.40904832]
[1760049589523,0.3839253,121730.0,121720.0,1.40904832]
[1760049591328,0.30269,121730.0,121720.0,1.40904832]
[1760049591517,0.3839253,121730.0,121720.0,1.40904832]
[1760049592629,0.30269,121730.0,121720.0,1.40904832]
[1760049592823,0.3839253,121730.0,121720.0,1.40904832]
[1760049593426,0.4065453,121730.0,121720.0,1.40864832]
[1760049595230,0.4065453,121730.0,121720.0,1.0239079]
[1760049595629,0.4065453,121730.0,121720.0,0.66684832]
[1760049595831,0.4065453,121730.0,121720.0,1.40856832]
[1760049596329,0.4065453,121730.0,121720.0,1.0238279]
[1760049596530,0.4065453,121730.0,121720.0,1.40856832]